fUSD/lending_fUSD_20240419
["ID","MTS","AMOUNT","RATE_DAILY","PERIOD"]
[322967024,1713547931865,-525.97,0.0001589,2]
[322967025,1713547931875,-500.0,0.0001589,2]
[322967026,1713547931885,-510.55,0.0001589,2]
[322967027,1713547931894,-951.28,0.0001589,2]
[322967028,1713547931903,-839.77,0.0001589,2]
[322967029,1713547931913,-500.0,0.0001589,2]
[322967030,1713547931925,-1185.12,0.0001589,2]
[322967031,1713547931935,-2157.71,0.0001589,2]
[322967032,1713547931945,-500.0,0.0001589,2]
[322967033,1713547931954,-500.0,0.0001589,2]
[322967034,1713547931964,-1409.98,0.0001589,2]
[322967035,1713547931973,-1042.32,0.0001589,2]
[322967036,1713547931982,-1187.74,0.0001589,2]
[322967037,1713547931992,-1175.16,0.0001589,2]
[322967038,1713547932002,-848.63,0.0001589,2]
[322967039,1713547932012,-500.0,0.0001589,2]
[322967040,1713547932022,-1924.82,0.0001589,2]
[322967041,1713547932033,-500.0,0.0001589,2]
[322967042,1713547932045,-500.0,0.0001589,2]
[322967043,1713547932054,-1021.09,0.0001589,2]
[322967044,1713547932064,-500.0,0.0001589,2]
[322967045,1713547932073,-1045.54,0.0001589,2]
[322967046,1713547932083,-500.0,0.0001589,2]
[322967047,1713547932092,-2634.28,0.0001589,2]
[322967048,1713547932102,-1262.88,0.0001589,2]
[322967049,1713547932111,-1166.31,0.0001589,2]
[322967050,1713547932121,-1332.33,0.0001589,2]
[322967051,1713547932131,-536.28,0.0001589,2]
[322967052,1713547932140,-712.59,0.0001589,2]
[322967053,1713547932150,-791.73,0.0001589,2]
[322967054,1713547932160,-1210.59,0.0001589,2]
[322967055,1713547932169,-500.0,0.0001589,2]
[322967056,1713547932182,-1285.96,0.0001589,2]
[322967057,1713547932191,-500.0,0.0001589,2]
[322967058,1713547932200,-500.0,0.0001589,2]
[322967059,1713547932210,-707.96,0.0001589,2]
[322967060,1713547932219,-930.65,0.0001589,2]
[322967061,1713547932228,-500.0,0.0001589,2]
[322967062,1713547932238,-876.01,0.0001589,2]
[322967063,1713547932247,-500.0,0.0001589,2]
[322967064,1713547932257,-500.0,0.0001589,2]
[322967065,1713547932267,-500.0,0.0001589,2]
[322967066,1713547932276,-1932.47,0.0001589,2]
[322967067,1713547932285,-500.0,0.0001589,2]
[322967068,1713547932294,-1043.23,0.0001589,2]
[322967069,1713547932304,-943.25,0.0001589,2]
[322967070,1713547932313,-591.53,0.0001589,2]
[322967071,1713547932323,-500.0,0.0001589,2]
[322967072,1713547932334,-500.0,0.0001589,2]
[322967073,1713547932343,-508.04,0.0001589,2]
[322967074,1713547932352,-500.0,0.0001589,2]
[322967075,1713547932362,-667.44,0.0001589,2]
[322967076,1713547932371,-500.0,0.0001589,2]
[322967077,1713547932381,-1005.79,0.0001589,2]
[322967078,1713547932390,-1151.58,0.0001589,2]
[322967079,1713547932400,-666.71,0.0001589,2]
[322967080,1713547932409,-500.0,0.0001589,2]
[322967081,1713547932419,-844.29,0.0001589,2]
[322967082,1713547932430,-859.59,0.0001589,2]
[322967083,1713547932440,-827.06,0.0001589,2]
[322967084,1713547932450,-909.02,0.0001589,2]
[322967085,1713547932465,-500.0,0.0001589,2]
[322967086,1713547932475,-3128.94,0.0001589,2]
[322967087,1713547932484,-1084.83,0.0001589,2]
[322967088,1713547932496,-165.04,0.0001589,2]
[322967089,1713547932505,-849.87,0.0001589,2]
[322967090,1713547932514,-500.0,0.0001589,2]
[322967091,1713547932524,-962.42,0.0001589,2]
[322967092,1713547932535,-500.0,0.0001589,2]
[322967093,1713547932546,-500.0,0.0001589,2]
[322967094,1713547932555,-500.0,0.0001589,2]
[322967095,1713547932566,-500.0,0.0001589,2]
[322967096,1713547932575,-500.0,0.0001589,2]
[322967097,1713547932584,-1106.42,0.0001589,2]
[322967098,1713547932594,-710.41,0.0001589,2]
[322967099,1713547932605,-860.99,0.0001589,2]
[322967100,1713547932614,-533.1,0.0001589,2]
[322967101,1713547932626,-1532.66,0.0001589,2]
[322967102,1713547932636,-1058.74,0.0001589,2]
[322967103,1713547932648,-500.0,0.0001589,2]
[322967104,1713547932657,-500.0,0.0001589,2]
[322967105,1713547932667,-1991.95,0.0001589,2]
[322967106,1713547932677,-917.22,0.0001589,2]
[322967107,1713547932687,-1677.63,0.0001589,2]
[322967108,1713547932696,-500.0,0.0001589,2]
[322967109,1713547932706,-1495.03,0.0001589,2]
[322967110,1713547932715,-500.0,0.0001589,2]
[322967111,1713547932725,-1437.08,0.0001589,2]
[322967112,1713547932734,-1221.32,0.0001589,2]
[322967113,1713547932744,-500.0,0.0001589,2]
[322967114,1713547932755,-894.68,0.0001589,2]
[322967115,1713547932765,-571.8472961,0.0001589,2]
[322967116,1713547932775,-339.06662052,0.0001589,2]
[322967117,1713547932785,-500.0,0.0001589,2]
[322967118,1713547932795,-1958.47,0.0001589,2]
[322967119,1713547932805,-2134.27,0.0001589,2]
[322967120,1713547932814,-1468.38,0.0001589,2]
[322967121,1713547932823,-1385.58,0.0001589,2]
[322967122,1713547932937,-1055.95,0.0001589,2]
[322967123,1713547932947,-435.26373343,0.0001589,2]
[322967124,1713547932957,-500.0,0.0001589,2]
[322967125,1713547932966,-850.7,0.0001589,2]
[322967126,1713547932975,-1613.06,0.0001589,2]
[322967127,1713547932985,-545.96,0.0001589,2]
[322967128,1713547932994,-1869.43,0.0001589,2]
[322967129,1713547933003,-500.0,0.0001589,2]
[322967130,1713547933013,-1137.3,0.0001589,2]
[322967131,1713547933021,-729.51,0.0001589,2]
[322967132,1713547933031,-1531.48,0.0001589,2]
[322967133,1713547933040,-867.54,0.0001589,2]
[322967134,1713547933050,-500.0,0.0001589,2]
[322967135,1713547933060,-591.76,0.0001589,2]
[322967136,1713547933069,-500.0,0.0001589,2]
[322967137,1713547933078,-918.65,0.0001589,2]
[322967138,1713547933087,-927.53,0.0001589,2]
[322967139,1713547933097,-500.0,0.0001589,2]
[322967140,1713547933106,-500.0,0.0001589,2]
[322967141,1713547933116,-2570.17,0.0001589,2]
[322967142,1713547933125,-500.0,0.0001589,2]
[322967143,1713547933134,-1851.41,0.0001589,2]
[322967144,1713547933144,-500.0,0.0001589,2]
[322967145,1713547933153,-500.0,0.0001589,2]
[322967146,1713547933162,-500.0,0.0001589,2]
[322967147,1713547933171,-717.49,0.0001589,2]
[322967148,1713547933181,-1190.81,0.0001589,2]
[322967149,1713547933189,-960.45,0.0001589,2]
[322967150,1713547933198,-500.0,0.0001589,2]
[322967151,1713547933207,-549.94,0.0001589,2]
[322967152,1713547933216,-500.0,0.0001589,2]
[322967153,1713547933225,-1956.81,0.0001589,2]
[322967154,1713547933234,-293.63057559,0.0001589,2]
[322967155,1713547933243,-765.42,0.0001589,2]
[322967156,1713547933252,-739.43,0.0001589,2]
[322967157,1713547933262,-1398.96,0.0001589,2]
[322967158,1713547933271,-500.0,0.0001589,2]
[322967159,1713547933280,-2103.77,0.0001589,2]
[322967160,1713547933289,-1685.66,0.0001589,2]
[322967161,1713547933298,-500.0,0.0001589,2]
[322967162,1713547933307,-1256.68,0.0001589,2]
[322967163,1713547933316,-1117.43,0.0001589,2]
[322967164,1713547933325,-1052.85,0.0001589,2]
[322967165,1713547933335,-1921.77,0.0001589,2]
[322967166,1713547933343,-772.1,0.0001589,2]
[322967167,1713547933353,-500.0,0.0001589,2]
[322967168,1713547933362,-511.27702494,0.0001589,2]
[322967169,1713547933372,-631.7,0.0001589,2]
[322967170,1713547933381,-2964.49,0.0001589,2]
[322967171,1713547933390,-500.0,0.0001589,2]
[322967172,1713547933400,-1253.8,0.0001589,2]
[322967173,1713547933409,-1378.32,0.0001589,2]
[322967174,1713547933419,-807.54,0.0001589,2]
[322967175,1713547933430,-1081.19,0.0001589,2]
[322967176,1713547933440,-815.96,0.0001589,2]
[322967177,1713547933452,-1049.59,0.0001589,2]
[322967178,1713547933463,-741.66,0.0001589,2]
[322967179,1713547933472,-1845.52,0.0001589,2]
[322967180,1713547933481,-2620.88,0.0001589,2]
[322967181,1713547933490,-2723.48,0.0001589,2]
[322967182,1713547933501,-1417.69,0.0001589,2]
[322967183,1713547933510,-1358.87,0.0001589,2]
[322967184,1713547933519,-552.72,0.0001589,2]
[322967185,1713547933530,-500.0,0.0001589,2]
[322967186,1713547933541,-735.73,0.0001589,2]
[322967187,1713547933550,-500.0,0.0001589,2]
[322967188,1713547933560,-1288.14,0.0001589,2]
[322967189,1713547933570,-500.0,0.0001589,2]
[322967190,1713547933579,-1780.73,0.0001589,2]
[322967191,1713547933588,-500.0,0.0001589,2]
[322967192,1713547933597,-504.98,0.0001589,2]
[322967193,1713547933606,-1067.84,0.0001589,2]
[322967194,1713547933616,-1255.87,0.0001589,2]
[322967195,1713547933625,-335.5588387,0.0001589,2]
[322967196,1713547933635,-500.0,0.0001589,2]
[322967197,1713547933644,-1672.8,0.0001589,2]
[322967198,1713547933654,-1584.31,0.0001589,2]
[322967199,1713547933663,-500.0,0.0001589,2]
[322967200,1713547933672,-537.61,0.0001589,2]
[322967201,1713547933683,-1836.33,0.0001589,2]
[322967202,1713547933692,-709.72,0.0001589,2]
[322967203,1713547933701,-500.0,0.0001589,2]
[322967204,1713547933710,-1262.36,0.0001589,2]
[322967205,1713547933719,-500.0,0.0001589,2]
[322967206,1713547933729,-1342.14,0.0001589,2]
[322967207,1713547933738,-907.63,0.0001589,2]
[322967208,1713547933747,-2176.51,0.0001589,2]
[322967209,1713547933756,-500.0,0.0001589,2]
[322967210,1713547933766,-1204.36,0.0001589,2]
[322967211,1713547933775,-2283.41,0.0001589,2]
[322967212,1713547933785,-567.88,0.0001589,2]
[322967213,1713547933794,-984.59,0.0001589,2]
[322967214,1713547933803,-669.36,0.0001589,2]
[322967215,1713547933812,-782.81,0.0001589,2]
[322967216,1713547933821,-533.61,0.0001589,2]
[322967217,1713547933830,-1288.58,0.0001589,2]
[322967218,1713547933839,-749.22,0.0001589,2]
[322967219,1713547933848,-500.0,0.0001589,2]
[322967220,1713547933857,-1347.98,0.0001589,2]
[322967221,1713547933866,-500.0,0.0001589,2]
[322967222,1713547933876,-1496.13,0.0001589,2]
[322967223,1713547933885,-776.56,0.0001589,2]
[322967224,1713547933894,-500.0,0.0001589,2]
[322967225,1713547933902,-969.2,0.0001589,2]
[322967226,1713547933911,-1621.12,0.0001589,2]
[322967227,1713547933920,-1194.99,0.0001589,2]
[322967228,1713547933932,-1096.01,0.0001589,2]
[322967229,1713547933941,-1157.29,0.0001589,2]
[322967230,1713547933950,-573.44,0.0001589,2]
[322967231,1713547933959,-1092.41,0.0001589,2]
[322967232,1713547933968,-500.0,0.0001589,2]
[322967233,1713547933978,-984.48,0.0001589,2]
[322967234,1713547933987,-1606.09,0.0001589,2]
[322967235,1713547934003,-500.0,0.0001589,2]
[322967236,1713547934012,-509.93,0.0001589,2]
[322967237,1713547934021,-2406.42,0.0001589,2]
[322967238,1713547934031,-500.84389743,0.0001589,2]
[322967239,1713547934040,-500.0,0.0001589,2]
[322967240,1713547934049,-500.0,0.0001589,2]
[322967241,1713547934059,-1808.05,0.0001589,2]
[322967242,1713547934068,-500.0,0.0001589,2]
[322967243,1713547934077,-500.0,0.0001589,2]
[322967244,1713547934086,-1231.43,0.0001589,2]
[322967245,1713547934095,-1260.52,0.0001589,2]
[322967246,1713547934104,-2066.12,0.0001589,2]
[322967247,1713547934113,-1235.4,0.0001589,2]
[322967248,1713547934122,-531.33,0.0001589,2]
[322967249,1713547934131,-500.0,0.0001589,2]
[322967250,1713547934141,-599.56,0.0001589,2]
[322967251,1713547934151,-1097.83,0.0001589,2]
[322967252,1713547934160,-2567.39,0.0001589,2]
[322967253,1713547934169,-1521.18,0.0001589,2]
[322967254,1713547934180,-500.0,0.0001589,2]
[322967255,1713547934189,-737.68,0.0001589,2]
[322967256,1713547934198,-500.0,0.0001589,2]
[322967257,1713547934208,-1429.5,0.0001589,2]
[322967258,1713547934218,-500.0,0.0001589,2]
[322967259,1713547934228,-500.0,0.0001589,2]
[322967260,1713547934238,-500.0,0.0001589,2]
[322967261,1713547934249,-609.78,0.0001589,2]
[322967262,1713547934258,-946.74,0.0001589,2]
[322967263,1713547934267,-917.99,0.0001589,2]
[322967264,1713547934276,-1353.39,0.0001589,2]
[322967265,1713547934285,-1147.96,0.0001589,2]
[322967266,1713547934294,-645.77,0.0001589,2]
[322967267,1713547934303,-590.73,0.0001589,2]
[322967268,1713547934312,-991.95,0.0001589,2]
[322967269,1713547934321,-1531.51,0.0001589,2]
[322967270,1713547934330,-500.0,0.0001589,2]
[322967271,1713547934340,-614.33,0.0001589,2]
[322967272,1713547934349,-500.0,0.0001589,2]
[322967273,1713547934358,-547.32,0.0001589,2]
[322967274,1713547934367,-1659.79,0.0001589,2]
[322967275,1713547934376,-1683.91,0.0001589,2]
[322967276,1713547934386,-554.76,0.0001589,2]
[322967277,1713547934395,-727.72,0.0001589,2]
[322967278,1713547934404,-2633.24,0.0001589,2]
[322967279,1713547934413,-541.98,0.0001589,2]
[322967280,1713547934422,-1541.82,0.0001589,2]
[322967281,1713547934434,-1982.78,0.0001589,2]
[322967282,1713547934444,-500.0,0.0001589,2]
[322967283,1713547934455,-1879.91,0.0001589,2]
[322967284,1713547934464,-2067.07,0.0001589,2]
[322967285,1713547934473,-500.0,0.0001589,2]
[322967286,1713547934482,-925.07,0.0001589,2]
[322967287,1713547934491,-2089.21,0.0001589,2]
[322967288,1713547934501,-2571.24,0.0001589,2]
[322967289,1713547934510,-500.0,0.0001589,2]
[322967290,1713547934520,-920.34,0.0001589,2]
[322967291,1713547934531,-733.19,0.0001589,2]
[322967292,1713547934541,-738.14,0.0001589,2]
[322967293,1713547934550,-1286.35,0.0001589,2]
[322967294,1713547934559,-648.77,0.0001589,2]
[322967295,1713547934568,-1793.39,0.0001589,2]
[322967296,1713547934577,-501.84,0.0001589,2]
[322967297,1713547934587,-1073.53,0.0001589,2]
[322967298,1713547934596,-620.08,0.0001589,2]
[322967299,1713547934605,-582.39,0.0001589,2]
[322967300,1713547934615,-500.0,0.0001589,2]
[322967301,1713547934624,-500.0,0.0001589,2]
[322967302,1713547934633,-500.0,0.0001589,2]
[322967303,1713547934642,-826.91,0.0001589,2]
[322967304,1713547934652,-3814.46,0.0001589,2]
[322967305,1713547934662,-500.0,0.0001589,2]
[322967306,1713547934671,-520.61,0.0001589,2]
[322967307,1713547934682,-500.0,0.0001589,2]
[322967308,1713547934692,-1444.61,0.0001589,2]
[322967309,1713547934702,-545.09,0.0001589,2]
[322967310,1713547934711,-500.0,0.0001589,2]
[322967311,1713547934720,-500.0,0.0001589,2]
[322967312,1713547934729,-1239.67,0.0001589,2]
[322967313,1713547934738,-500.0,0.0001589,2]
[322967314,1713547934747,-500.0,0.0001589,2]
[322967315,1713547934756,-778.47,0.0001589,2]
[322967316,1713547934766,-717.84,0.0001589,2]
[322967317,1713547934775,-562.43,0.0001589,2]
[322967318,1713547934785,-500.0,0.0001589,2]
[322967319,1713547934794,-534.84,0.0001589,2]
[322967320,1713547934803,-500.0,0.0001589,2]
[322967321,1713547934812,-1476.82,0.0001589,2]
[322967322,1713547934821,-1833.64,0.0001589,2]
[322967323,1713547934830,-931.07,0.0001589,2]
[322967324,1713547934840,-1543.13,0.0001589,2]
[322967325,1713547934849,-514.51,0.0001589,2]
[322967326,1713547934859,-500.0,0.0001589,2]
[322967327,1713547934868,-924.5,0.0001589,2]
[322967328,1713547934877,-986.48,0.0001589,2]
[322967329,1713547934886,-3429.89,0.0001589,2]
[322967330,1713547934895,-500.0,0.0001589,2]
[322967331,1713547934904,-502.53,0.0001589,2]
[322967332,1713547934915,-500.0,0.0001589,2]
[322967333,1713547934926,-1384.12,0.0001589,2]
[322967334,1713547934938,-1529.43,0.0001589,2]
[322967335,1713547934947,-527.25,0.0001589,2]
[322967336,1713547934957,-713.45,0.0001589,2]
[322967337,1713547934967,-500.0,0.0001589,2]
[322967338,1713547934976,-1481.71,0.0001589,2]
[322967339,1713547934985,-1823.94,0.0001589,2]
[322967340,1713547934994,-679.73,0.0001589,2]
[322967341,1713547935003,-500.0,0.0001589,2]
[322967342,1713547935012,-1763.78,0.0001589,2]
[322967343,1713547935022,-830.36,0.0001589,2]
[322967344,1713547935032,-500.0,0.0001589,2]
[322967345,1713547935041,-500.0,0.0001589,2]
[322967346,1713547935051,-4120.99,0.0001589,2]
[322967347,1713547935061,-500.0,0.0001589,2]
[322967348,1713547935071,-1450.48,0.0001589,2]
[322967349,1713547935080,-500.0,0.0001589,2]
[322967350,1713547935089,-500.0,0.0001589,2]
[322967351,1713547935098,-1589.95,0.0001589,2]
[322967352,1713547935108,-1251.26,0.0001589,2]
[322967353,1713547935118,-689.87,0.0001589,2]
[322967354,1713547935127,-655.83,0.0001589,2]
[322967355,1713547935137,-1698.86,0.0001589,2]
[322967356,1713547935146,-500.0,0.0001589,2]
[322967357,1713547935155,-1066.59,0.0001589,2]
[322967358,1713547935164,-3508.76,0.0001589,2]
[322967359,1713547935174,-1108.37,0.0001589,2]
[322967360,1713547935187,-1759.06,0.0001589,2]
[322967361,1713547935197,-900.9,0.0001589,2]
[322967362,1713547935207,-671.87,0.0001589,2]
[322967363,1713547935217,-919.21,0.0001589,2]
[322967364,1713547935226,-712.97,0.0001589,2]
[322967365,1713547935235,-710.37,0.0001589,2]
[322967366,1713547935244,-1505.91,0.0001589,2]
[322967367,1713547935254,-500.0,0.0001589,2]
[322967368,1713547935264,-500.0,0.0001589,2]
[322967369,1713547935273,-500.0,0.0001589,2]
[322967370,1713547935283,-2296.24,0.0001589,2]
[322967371,1713547935292,-824.87,0.0001589,2]
[322967372,1713547935301,-506.9,0.0001589,2]
[322967373,1713547935310,-2853.29,0.0001589,2]
[322967374,1713547935319,-822.25,0.0001589,2]
[322967375,1713547935328,-537.9,0.0001589,2]
[322967376,1713547935338,-894.82,0.0001589,2]
[322967377,1713547935349,-563.06,0.0001589,2]
[322967378,1713547935358,-1134.71,0.0001589,2]
[322967379,1713547935368,-1499.52,0.0001589,2]
[322967380,1713547935377,-903.85,0.0001589,2]
[322967381,1713547935386,-500.0,0.0001589,2]
[322967382,1713547935395,-500.0,0.0001589,2]
[322967383,1713547935404,-1557.7,0.0001589,2]
[322967384,1713547935414,-786.62,0.0001589,2]
[322967385,1713547935427,-500.0,0.0001589,2]
[322967386,1713547935440,-500.0,0.0001589,2]
[322967387,1713547935451,-500.0,0.0001589,2]
[322967388,1713547935463,-1546.59,0.0001589,2]
[322967389,1713547935473,-795.02,0.0001589,2]
[322967390,1713547935483,-630.22,0.0001589,2]
[322967391,1713547935493,-500.0,0.0001589,2]
[322967392,1713547935502,-621.78,0.0001589,2]
[322967393,1713547935511,-1326.35,0.0001589,2]
[322967394,1713547935521,-519.1,0.0001589,2]
[322967395,1713547935531,-764.79,0.0001589,2]
[322967396,1713547935541,-533.38,0.0001589,2]
[322967397,1713547935550,-500.0,0.0001589,2]
[322967398,1713547935559,-2412.88,0.0001589,2]
[322967399,1713547935569,-500.0,0.0001589,2]
[322967400,1713547935579,-1738.05,0.0001589,2]
[322967401,1713547935588,-938.98,0.0001589,2]
[322967402,1713547935598,-636.42,0.0001589,2]
[322967403,1713547935608,-545.94,0.0001589,2]
[322967404,1713547935617,-531.08,0.0001589,2]
[322967405,1713547935627,-500.0,0.0001589,2]
[322967406,1713547935637,-500.0,0.0001589,2]
[322967407,1713547935647,-2340.34,0.0001589,2]
[322967408,1713547935658,-833.04,0.0001589,2]
[322967409,1713547935667,-1053.89,0.0001589,2]
[322967410,1713547935680,-855.66,0.0001589,2]
[322967411,1713547935689,-500.0,0.0001589,2]
[322967412,1713547935699,-500.0,0.0001589,2]
[322967413,1713547935708,-955.48,0.0001589,2]
[322967414,1713547935717,-642.26,0.0001589,2]
[322967415,1713547935726,-500.0,0.0001589,2]
[322967416,1713547935737,-841.68,0.0001589,2]
[322967417,1713547935747,-5268.86,0.0001589,2]
[322967418,1713547935756,-879.59,0.0001589,2]
[322967419,1713547935766,-1343.94,0.0001589,2]
[322967420,1713547935776,-500.0,0.0001589,2]
[322967421,1713547935785,-4733.91,0.0001589,2]
[322967422,1713547935794,-1082.66,0.0001589,2]
[322967423,1713547935804,-500.0,0.0001589,2]
[322967424,1713547935813,-500.0,0.0001589,2]
[322967425,1713547935822,-500.0,0.0001589,2]
[322967426,1713547935832,-1090.92,0.0001589,2]
[322967427,1713547935842,-1759.6,0.0001589,2]
[322967428,1713547935851,-500.0,0.0001589,2]
[322967429,1713547935861,-742.94,0.0001589,2]
[322967430,1713547935870,-567.95,0.0001589,2]
[322967431,1713547935879,-500.0,0.0001589,2]
[322967432,1713547935888,-500.0,0.0001589,2]
[322967433,1713547935898,-622.47,0.0001589,2]
[322967434,1713547935907,-4863.74,0.0001589,2]
[322967435,1713547935917,-2946.36,0.0001589,2]
[322967436,1713547935930,-865.24,0.0001589,2]
[322967437,1713547935941,-500.0,0.0001589,2]
[322967438,1713547935951,-977.04,0.0001589,2]
[322967439,1713547935961,-1173.2,0.0001589,2]
[322967440,1713547935971,-705.94,0.0001589,2]
[322967441,1713547935981,-1040.86,0.0001589,2]
[322967442,1713547935991,-1709.0,0.0001589,2]
[322967443,1713547936000,-1225.48,0.0001589,2]
[322967444,1713547936010,-1647.32,0.0001589,2]
[322967445,1713547936022,-1418.14,0.0001589,2]
[322967446,1713547936031,-1311.75,0.0001589,2]
[322967447,1713547936042,-2658.56,0.0001589,2]
[322967448,1713547936051,-969.72,0.0001589,2]
[322967449,1713547936060,-500.0,0.0001589,2]
[322967450,1713547936070,-6579.29,0.0001589,2]
[322967451,1713547936079,-500.0,0.0001589,2]
[322967452,1713547936089,-15195.99,0.0001589,2]
[322967453,1713547936099,-1421.48,0.0001589,2]
[322967454,1713547936109,-1735.44,0.0001589,2]
[322967455,1713547936120,-2819.15,0.0001589,2]
[322967456,1713547936129,-539.84,0.0001589,2]
[322967457,1713547936139,-3560.07,0.0001589,2]
[322967458,1713547936149,-755.96,0.0001589,2]
[322967459,1713547936159,-369.53048829,0.0001589,2]
[322967460,1713547936169,-1491.97,0.0001589,2]
[322967461,1713547936178,-11876.02,0.0001589,2]
[322967462,1713547936188,-500.0,0.0001589,2]
[322967463,1713547936198,-765.25,0.0001589,2]
[322967464,1713547936207,-1279.81,0.0001589,2]
[322967465,1713547936217,-5736.72,0.0001589,2]
[322967466,1713547936227,-508.97,0.0001589,2]
[322967467,1713547936237,-1088.04,0.0001589,2]
[322967468,1713547936247,-629.73,0.0001589,2]
[322967469,1713547936257,-6573.7,0.0001589,2]
[322967470,1713547936267,-21969.77447964,0.0001589,2]
[322967471,1713547937231,-23248.97552036,0.0001589,2]
[322967472,1713547937242,-500.0,0.0001589,2]
[322967473,1713547937252,-500.0,0.0001589,2]
[322967474,1713547937262,-5396.18,0.0001589,2]
[322967475,1713547937273,-685.5,0.0001589,2]
[322967476,1713547937283,-500.0,0.0001589,2]
[322967477,1713547937292,-52964.1,0.0001589,2]
[322967478,1713547937305,-558.14,0.0001589,2]
[322967479,1713547937314,-1025.75,0.0001589,2]
[322967480,1713547937324,-681.73,0.0001589,2]
[322967481,1713547937334,-2662.99,0.0001589,2]
[322967482,1713547937344,-2204.22,0.0001589,2]
[322967483,1713547937354,-5965.37,0.0001589,2]
[322967484,1713547937364,-3247.07,0.0001589,2]
[322967485,1713547937374,-500.0,0.0001589,2]
[322967486,1713547937384,-674.06,0.0001589,2]
[322967487,1713547937395,-12227.84,0.0001589,2]
[322967488,1713547937405,-500.0,0.0001589,2]
[322967489,1713547937415,-4761.03,0.0001589,2]
[322967490,1713547937426,-4123.91,0.0001589,2]
[322967491,1713547937437,-1367.3,0.0001589,2]
[322967492,1713547937447,-3343.38,0.0001589,2]
[322967493,1713547937461,-741.07,0.0001589,2]
[322967494,1713547937471,-757.02,0.0001589,2]
[322967495,1713547937482,-1610.38,0.0001589,2]
[322967496,1713547937493,-500.0,0.0001589,2]
[322967497,1713547937507,-5484.98,0.0001589,2]
[322967498,1713547937518,-928.0,0.0001589,2]
[322967499,1713547937528,-500.0,0.0001589,2]
[322967500,1713547937539,-6276.92,0.0001589,2]
[322967501,1713547937549,-3916.21,0.0001589,2]
[322967502,1713547937559,-500.0,0.0001589,2]
[322967503,1713547937570,-588.77,0.0001589,2]
[322967504,1713547937580,-500.0,0.0001589,2]
[322967505,1713547937591,-2018.33,0.0001589,2]
[322967506,1713547937602,-3262.35,0.0001589,2]
[322967507,1713547937612,-615.68,0.0001589,2]
[322967508,1713547937623,-585.61,0.0001589,2]
[322967509,1713547937634,-711.84,0.0001589,2]
[322967510,1713547937644,-6581.21,0.0001589,2]
[322967511,1713547937654,-2216.57,0.0001589,2]
[322967512,1713547937664,-3455.3,0.0001589,2]
[322967513,1713547937675,-11383.33,0.0001589,2]
[322967514,1713547937689,-1041.22,0.0001589,2]
[322967515,1713547937699,-500.0,0.0001589,2]
[322967516,1713547937709,-500.0,0.0001589,2]
[322967517,1713547937722,-4221.78,0.0001589,2]
[322967518,1713547937737,-500.0,0.0001589,2]
[322967519,1713547937747,-510.55,0.0001589,2]
[322967520,1713547937758,-2544.65,0.0001589,2]
[322967521,1713547937768,-5227.38,0.0001589,2]
[322967522,1713547937779,-1412.66,0.0001589,2]
[322967523,1713547937789,-500.0,0.0001589,2]